Cogmind - Beta 13 @@@ ROGUE MODE // 2024.04.14 @ 15:40:35 Player: Conlarando Result: Destroyed by G-67 Veteran with Plasma Rifle Performance ------------- Evolutions (7) 3500 Regions Visited (12) 2400 Robots Destroyed (77) 385 Value Destroyed (1658) 1658 Prototype IDs (38) 760 Alien Tech Used (0) 0 Bonus (568) 568 TOTAL SCORE: 9271 Bonus ------- Follower Combat Kills 304 Aligned with FarCom 300 Friendly Fire -36 Cogmind --------- Core Integrity 0/1300 Matter 33/300 Energy 100/100 System Corruption 16% Temperature Cool (12) Movement Core (50) Location -3/Research Parts ------- > --- POWER (3) -------- (None) > --- PROPULSION (8) --- (None) > --- UTILITY (8) ------ Gravity Neutralizer System Shield > --- WEAPON (2) ------- (None) > --- INVENTORY (5) ---- Heavy Dispersion Rifle Peak State ------------ > --- POWER ------------ Light Angular Momentum Engine Fusion Compressor > --- PROPULSION ------- Gravmag Array Gravmag Array Antigrav System Improved Antigrav System Improved Linear Gravjet > --- UTILITY ---------- Advanced Weight Redist. System Advanced Sensor Array Improved Signal Interpreter Advanced ECM Suite Advanced Reaction Control System Improved Thermal Defense Suite Hacking Suite Advanced Hacking Suite > --- WEAPON ----------- Powered Hammer > --- INVENTORY -------- Antigrav System Nuclear Pulse Thruster ECM Suite Heavy Flail [Rating: 93] Favorites ----------- Power Heavy Ion Engine Engine Heavy Ion Engine Power Core Fusion Compressor Reactor Antimatter Reactor Propulsion Light Treads Treads Light Treads Leg Aluminum Leg Wheel Wheel Hover Unit Gravmag System Flight Unit Cesium-ion Thruster Utility Advanced Weight Redist. System Device Advanced Weight Redist. System Storage Huge Storage Unit Processor Improved Signal Interpreter Hackware Hacking Suite Protection Utility Shielding Weapon Heavy EM Pulse Gun Energy Gun Heavy EM Pulse Gun Ballistic Gun Light Assault Rifle Ballistic Cannon Mini Assault Cannon Launcher Micro-nuke Launcher Special Weapon Field Lobotomy Kit Impact Weapon Powered Hammer Slashing Weapon Chainsword Piercing Weapon Lance Special Melee Weapon Advanced Datajack Build | -11 -10 -10 -10 -9 -8 -7 -6 -5 -5 -5 -4 -3 ------- Run | Yrd Mat Min Exi Min Mat Fac Fac Fac Upp Upp Fac Res Slots Evolved 14 | . . . . . 4 2 2 2 . . 2 2 Power 2 | . . . . . . . 1 . . . . 1 Propulsion 6 | . . . . . 1 1 1 1 . . 1 1 Utility 6 | . . . . . 3 1 . 1 . . 1 . Weapon . | . . . . . . . . . . . . . Parts Attached 225 | 7 24 2 . 1 26 52 35 20 6 . 27 25 Power 22 | 2 4 . . . . 4 6 2 1 . 1 2 Engine 17 | 2 4 . . . . 3 5 1 1 . . 1 Core 4 | . . . . . . 1 1 1 . . . 1 Reactor 1 | . . . . . . . . . . . 1 . Propulsion 72 | 2 7 . . . 2 21 7 9 1 . 13 10 Treads 6 | . 4 . . . 2 . . . . . . . Leg 2 | . 2 . . . . . . . . . . . Wheel 4 | 2 1 . . . . . . . . . . 1 Hover 25 | . . . . . . 7 3 7 . . 7 1 Flight 35 | . . . . . . 14 4 2 1 . 6 8 Utility 77 | 1 3 2 . 1 6 17 15 9 4 . 10 9 Device 34 | . 1 1 . . 3 7 5 3 1 . 7 6 Storage 5 | 1 1 1 . . . 2 . . . . . . Processor 11 | . 1 . . 1 . 2 3 3 1 . . . Hackware 9 | . . . . . 1 2 . . . . 3 3 Protection 18 | . . . . . 2 4 7 3 2 . . . Artifact . | . . . . . . . . . . . . . Weapon 54 | 2 10 . . . 18 10 7 . . . 3 4 Energy Gun 22 | . 8 . . . 10 1 . . . . . 3 Energy Cannon . | . . . . . . . . . . . . . Ballistic Gun 13 | 2 2 . . . 7 2 . . . . . . Ballistic Cannon 2 | . . . . . . . 2 . . . . . Launcher 1 | . . . . . . . . . . . 1 . Special Weapon 5 | . . . . . 1 3 1 . . . . . Impact Weapon 7 | . . . . . . 3 3 . . . 1 . Slashing Weapon 1 | . . . . . . 1 . . . . . . Piercing Weapon 2 | . . . . . . . 1 . . . . 1 Special Melee Weapon 1 | . . . . . . . . . . . 1 . Unidentified Prototypes 14 | . 1 1 . . 1 2 4 . . . 1 4 Parts Lost 74 | . 4 . . . . 13 7 7 3 . 20 20 Power 8 | . 2 . . . . 1 . . 1 . 2 2 Propulsion 30 | . . . . . . 7 3 5 1 . 7 7 Utility 32 | . . . . . . 5 4 2 1 . 10 10 Weapon 4 | . 2 . . . . . . . . . 1 1 Highest Loss Streak 11 | . 3 . . . . 5 5 4 2 . 8 11 To Critical Strikes . | . . . . . . . . . . . . . Average Slot Usage (%) 89 | . 97 100 100 100 98 89 91 87 72 70 59 32 Engine 9 | . 13 14 14 14 9 3 11 10 5 5 3 . Core 1 | . . . . . . 2 1 . 5 5 2 . Treads 10 | . 7 28 28 28 27 . . . . . . . Leg 2 | . 15 . . . . . . . . . . . Hover 5 | . . . . . . 4 23 11 14 11 14 . Flight 6 | . . . . . . 21 7 17 . . 1 9 Device 10 | . 4 2 14 8 11 13 12 18 22 23 15 5 Storage 7 | . 14 14 14 14 9 5 4 . . . . . Processor 8 | . 8 11 . 5 9 7 8 9 14 17 7 4 Hackware 3 | . . . . . 1 11 . . . . 7 8 Protection 3 | . . . . . 11 2 10 10 1 . . . Energy Gun 10 | . 16 28 28 28 14 . . . . . . . Ballistic Gun 2 | . 11 . . . 3 1 . . . . . . Impact Weapon 2 | . . . . . . 3 6 5 5 5 4 . Naked Turns . | . . . . . . . . . . . . . Heaviest Build 108 | 13 34 95 95 95 108 104 60 32 25 22 35 19 Greatest Support 82 | 26 40 40 40 40 60 60 55 73 31 31 82 35 Greatest Overweight (x) 4 | . 4 2 2 2 1 4 3 1 1 . 1 2 Average Overweight (x) . | . . 1 2 2 1 . . . . . . . Largest Inventory Capacity 25 | 8 15 25 25 25 25 25 10 5 5 5 5 5 Average Capacity 13 | 6 10 24 25 25 25 8 8 5 5 5 5 5 Most Carried 25 | 5 15 16 17 21 25 25 10 5 5 4 5 5 Average Carried 10 | 2 8 15 16 18 24 7 8 4 4 4 3 3 Final Capacity 25 | 8 15 25 25 25 25 10 5 5 5 5 5 5 Final Carried 25 | 4 15 16 17 21 25 10 4 5 4 4 5 1 Class Distribution -------------------- 46% | Mutant 12% | Ninja 11% | Scavenger-Mutant 7% | Skirmisher 6% | Hacker-Sprinter 3% | Hacker-Scout 3% | Hacker-Mutant Dominant Class ---------------- Mutant | -10/Materials Mutant | -10/Mines Mutant | -10/Exiles Skirmisher | -9/Mines Skirmisher | -8/Materials Hacker-Sprinter | -7/Factory Scavenger-Mutant | -6/Factory Ninja | -5/Factory Ninja | -5/Upper Caves Ninja | -5/Upper Caves Ninja | -4/Factory Hacker-Mutant | -3/Research Resources | -11 -10 -10 -10 -9 -8 -7 -6 -5 -5 -5 -4 -3 ----------- Run | Yrd Mat Min Exi Min Mat Fac Fac Fac Upp Upp Fac Res Matter Collected 2832 | 237 488 29 . 15 284 513 283 442 62 . 399 80 Remotely . | . . . . . . . . . . . . . Salvage Created 3006 | . 707 . . 109 266 670 118 499 . . 521 116 Parts 140 | . 43 . . 9 17 38 6 7 . . 12 8 Haulers Intercepted 5 | . . . . . . 1 . 1 . . 3 . Recyclers Shooed 5 | . 1 . . . . . 1 2 . . . 1 Parts Field Recycled . | . . . . . . . . . . . . . Retrieved Matter . | . . . . . . . . . . . . . Parts Self-Destructed 1 | . . . . . . . . . 1 . . . Prevented . | . . . . . . . . . . . . . Kills | -11 -10 -10 -10 -9 -8 -7 -6 -5 -5 -5 -4 -3 ------- Run | Yrd Mat Min Exi Min Mat Fac Fac Fac Upp Upp Fac Res Combat Hostiles Destroyed 30 | . 14 . . 2 3 6 2 1 . . 1 1 Melee 7 | . . . . . . 5 1 . . . . 1 Guns 18 | . 13 . . 2 2 1 . . . . . . AOE 2 | . . . . . . . 1 . . . 1 . Classes Destroyed 12 | . 7 . . . 1 3 . 1 . . . . Worker 15 | . 3 . . . . 3 2 2 . . 4 1 Builder 5 | . 2 . . . . . . 2 . . 1 . Tunneler 2 | . . . . . . 1 1 . . . . . Hauler 5 | . . . . . . 1 . 1 . . 3 . Recycler 8 | . 1 . . 1 1 2 . 2 . . 1 . Operator 5 | . 2 . . . 1 . . . . . . 2 Watcher 7 | . 2 . . . 1 3 . . . . 1 . Swarmer 9 | . 6 . . 2 . . . . . . 1 . Grunt 11 | . 8 . . . 2 1 . . . . . . Sentry 1 | . . . . . . . . 1 . . . . Hunter 1 | . . . . . 1 . . . . . . . Programmer 8 | . . . . . . 5 2 . . . . 1 Best Kill Streak 6 | . 3 . . 3 2 6 2 3 . . 4 1 Combat Bots Only 3 | . 3 . . 2 1 2 1 1 . . 1 1 Max Kills in Single Turn 2 | . 2 . . 2 2 1 1 1 . . 1 1 Gunslinging . | . . . . . . . . . . . . . Exploded 1 | . . . . . . . 1 . . . 1 . Melee 1 | . . . . . . 1 1 . . . . 1 Uniques/NPCs Destroyed . | . . . . . . . . . . . . . Combat | -11 -10 -10 -10 -9 -8 -7 -6 -5 -5 -5 -4 -3 -------- Run | Yrd Mat Min Exi Min Mat Fac Fac Fac Upp Upp Fac Res Hostile Shots Fired 618 | . 75 . . 8 18 88 86 25 43 . 88 187 Missed 264 | . 16 . . 4 7 42 36 10 22 . 39 88 Damage Taken 8932 | . 665 . . 32 133 932 1300 756 383 . 2319 2412 Core 3002 | . 118 . . 18 37 245 264 55 76 . 883 1306 Absorbed by Shields 327 | . . . . . 34 . 293 . . . . . Redirected to Shielding 187 | . . . . . 6 9 88 84 . . . . Regen/Repaired (Parts) 29 | . . . . . . 29 . . . . . . Core Remaining (%) 68 | 100 . . . 45 93 65 68 . . 86 23 . Volleys Fired 127 | . 78 1 . 7 18 8 10 . . . 2 3 Largest 2 | . 2 2 . 2 2 1 1 . . . 1 1 Hottest 100 | . 100 90 . 90 90 61 48 . . . 49 94 Shots Fired 230 | . 155 2 . 14 35 9 10 . . . 2 3 Gun 216 | . 155 2 . 14 34 8 . . . . . 3 Cannon 7 | . . . . . . . 7 . . . . . Launcher 2 | . . . . . . . . . . . 2 . Special 5 | . . . . . 1 1 3 . . . . . Kinetic 80 | . 58 . . . 12 3 7 . . . . . Thermal 95 | . 87 . . . . 5 . . . . . 3 Explosive 2 | . . . . . . . . . . . 2 . Electromagnetic 48 | . 10 2 . 14 22 . . . . . . . Robot Hit Streak 14 | . 14 . . 1 4 8 3 . . . 1 4 Robot Miss Streak 4 | . 4 2 . 4 3 1 4 . . . . . Penetration Max . | . . . . . . . . . . . . . Secondary Targets . | . . . . . . . . . . . . . Shots Hit Robots 200 | . 91 . . 4 19 34 9 11 . . 16 16 Core Hits 79 | . 38 . . 3 10 15 1 2 . . 5 5 Critical Kills 4 | . 1 . . . 1 1 . . . . 1 . Critical Parts Destroyed 9 | . 1 . . . . . 1 4 . . 3 . Critical Strikes 17 | . 3 . . . 1 3 1 4 . . 4 1 Burn 1 | . 1 . . . . . . . . . . . Destroy 3 | . 2 . . . 1 . . . . . . . Smash 10 | . . . . . . 1 1 4 . . 4 . Sever 2 | . . . . . . 2 . . . . . . Impale 1 | . . . . . . . . . . . . 1 Melee Attacks 300 | . . . . . . 122 49 41 3 . 55 30 Impact 179 | . . . . . . 36 44 41 3 . 55 . Slashing 88 | . . . . . . 86 2 . . . . . Piercing 33 | . . . . . . . 3 . . . . 30 Sneak Attacks 29 | . . . . . . 8 4 6 . . 9 2 Combat Hostiles . | . . . . . . . . . . . . . Follow-up Attacks . | . . . . . . . . . . . . . Damage Inflicted 6424 | . 1173 21 . 87 308 1411 683 797 . . 1255 689 Guns 1758 | . 1150 16 . 87 308 107 . . . . . 90 Cannons 30 | . . . . . . . 30 . . . . . Explosions 371 | . . . . . . . 227 . . . 144 . Melee 4237 | . . . . . . 1304 426 797 . . 1111 599 Ramming 28 | . 23 5 . . . . . . . . . . Kinetic 441 | . 342 . . . 46 23 30 . . . . . Thermal 1133 | . 732 . . . . 84 227 . . . . 90 Explosive 144 | . . . . . . . . . . . 144 . Electromagnetic 441 | . 76 16 . 87 262 . . . . . . . Impact 2514 | . . . . . . 180 426 797 . . 1111 . Slashing 1124 | . . . . . . 1124 . . . . . . Piercing 599 | . . . . . . . . . . . . 599 Highest Corruption 19 | . . . . . . 11 7 9 9 9 19 16 Average Corruption 7 | . . . . . . 6 4 9 9 9 13 5 Corruption Purged . | . . . . . . . . . . . . . Corruption Blocked 8 | . . . . . . 8 . . . . . . Effects 129 | . . . . . . 46 15 17 15 1 28 7 Message Errors 26 | . . . . . . 10 3 . 4 1 6 2 Matter Fused 32 | . . . . . . 10 4 8 4 . 5 1 Heat Flow Errors 20 | . . . . . . 6 4 2 5 . 3 . Energy Discharges 13 | . . . . . . 4 . 3 . . 4 2 Parts Rejected 2 | . . . . . . 1 . . . . 1 . Parts Fused 1 | . . . . . . 1 . . . . . . Data Loss (minor) 19 | . . . . . . 8 1 3 1 . 4 2 Data Loss (major) 10 | . . . . . . 3 3 1 1 . 2 . Misfires 1 | . . . . . . 1 . . . . . . Alerts 2 | . . . . . . 1 . . . . 1 . Misdirections 3 | . . . . . . 1 . . . . 2 . Overload Shots . | . . . . . . . . . . . . . Overflow Damage 1637 | . . . . . . 163 362 470 . . 511 131 Projectiles . | . . . . . . . . . . . . . Explosions 140 | . . . . . . . 140 . . . . . Melee 1497 | . . . . . . 163 222 470 . . 511 131 Knockbacks 11 | . . . . . . 1 2 5 . . 3 . Impact 11 | . . . . . . 1 2 5 . . 3 . Kinetic . | . . . . . . . . . . . . . Secondary . | . . . . . . . . . . . . . Self-Inflicted Damage 210 | . 8 . . . . . 159 . . . 43 . Shots 3 | . . . . . . . 2 . . . 1 . Rammed 4 | . 3 1 . . . . . . . . . . Targets Rammed 8 | . 7 1 . . . . . . . . . . Kicked 4 | . 4 . . . . . . . . . . . Crushed . | . . . . . . . . . . . . . Highest Temperature 600 | . 600 33 . 176 149 264 225 232 254 . 255 6 Average Temperature 114 | . 176 20 . 77 53 103 76 74 118 . 40 3 Received Heat Transfer 1249 | . 261 . . . 42 261 208 39 117 . 168 153 Effects 17 | . 17 . . . . . . . . . . . Shutdowns 5 | . 5 . . . . . . . . . . . Energy Bleed 3 | . 3 . . . . . . . . . . . Matter Decay 3 | . 3 . . . . . . . . . . . Short Circuit 2 | . 2 . . . . . . . . . . . Damage (minor) 3 | . 3 . . . . . . . . . . . Damage (core) 1 | . 1 . . . . . . . . . . . Siege Activations . | . . . . . . . . . . . . . Robots Corrupted 1 | . . . . . 1 . . . . . . . Combat Hostiles 1 | . . . . . 1 . . . . . . . Parts Fried 26 | . . . . . 1 5 2 9 . . 9 . Impact Corruptions 41 | . . . . . . 2 7 17 . . 15 . Robots Melted 1 | . 1 . . . . . . . . . . . Combat Hostiles 1 | . 1 . . . . . . . . . . . Parts Melted 8 | . 4 . . 1 . 2 1 . . . . . Heat Transferred 2653 | . 2257 . . . . 185 100 . . . . 111 Parts Sabotaged . | . . . . . . . . . . . . . Parts Stolen . | . . . . . . . . . . . . . Parts Stripped . | . . . . . . . . . . . . . Power Chain Reactions . | . . . . . . . . . . . . . Alert | -11 -10 -10 -10 -9 -8 -7 -6 -5 -5 -5 -4 -3 ------- Run | Yrd Mat Min Exi Min Mat Fac Fac Fac Upp Upp Fac Res Peak Influence 416 | . 205 149 . 58 106 397 416 216 . . 351 328 Initial 183 | . . 1 . . . 23 171 171 . . . 183 Average 77 | . 35 11 . 18 28 126 137 86 . . 114 228 Maximum Alert Level 2 | . 1 . . . . 1 2 1 . . 1 1 Low Security (%) 85 | 100 96 100 . 100 100 66 85 81 . . 82 45 Level 1 13 | . 3 . . . . 33 9 18 . . 17 54 Level 2 . | . . . . . . . 5 . . . . . Level 3 . | . . . . . . . . . . . . . Level 4 . | . . . . . . . . . . . . . Level 5 . | . . . . . . . . . . . . . High Security . | . . . . . . . . . . . . . Max Security . | . . . . . . . . . . . . . Squads Dispatched 41 | . 3 1 . . 2 12 11 2 . . 5 5 Investigation 6 | . 1 . . . . 3 2 . . . . . Extermination 12 | . . . . . . 5 3 1 . . 2 1 Reinforcement 17 | . 2 . . . 1 4 3 1 . . 3 3 Assault 1 | . . 1 . . . . . . . . . . Garrison 5 | . . . . . 1 . 3 . . . . 1 Intercept . | . . . . . . . . . . . . . Searches Triggered . | . . . . . . . . . . . . . Construction Impeded 2 | . . . . . . . . 1 . . 1 . Haulers Reinforced . | . . . . . . . . . . . . . Active Scanning Responses . | . . . . . . . . . . . . . Cargo Convoy Interrupts 1 | . . . . . . 1 . . . . . . Stealth | -11 -10 -10 -10 -9 -8 -7 -6 -5 -5 -5 -4 -3 --------- Run | Yrd Mat Min Exi Min Mat Fac Fac Fac Upp Upp Fac Res Distress Signals 8 | . 1 . . . . 1 2 1 . . 3 . Communications Jammed . | . . . . . . . . . . . . . Distress Signals . | . . . . . . . . . . . . . Times Spotted 204 | . 38 4 . 3 11 38 25 4 18 . 32 31 Peak Tracking Total 13 | . 5 2 . 3 3 8 8 5 7 . 8 13 Tactical Retreats 45 | . 2 . . . 1 10 5 3 6 . 11 7 Traps | -11 -10 -10 -10 -9 -8 -7 -6 -5 -5 -5 -4 -3 ------- Run | Yrd Mat Min Exi Min Mat Fac Fac Fac Upp Upp Fac Res Traps Triggered 13 | . 3 . . . . 3 6 . . . . 1 Indirectly . | . . . . . . . . . . . . . Trap Hack Attempts . | . . . . . . . . . . . . . Triggered . | . . . . . . . . . . . . . Disarmed . | . . . . . . . . . . . . . Reprogrammed . | . . . . . . . . . . . . . Reused . | . . . . . . . . . . . . . Traps Extracted . | . . . . . . . . . . . . . Installed . | . . . . . . . . . . . . . Triggered 5 | . . . . . . 2 . . 2 . 1 . Machines | -11 -10 -10 -10 -9 -8 -7 -6 -5 -5 -5 -4 -3 ---------- Run | Yrd Mat Min Exi Min Mat Fac Fac Fac Upp Upp Fac Res Machines Disabled 7 | . 1 . . . . . 5 . . . 1 . Max in Single Turn 5 | . 1 . . . . . 5 . . . 1 . Garrison Access 1 | . . . . . 1 . . . . . . . Machines Repaired . | . . . . . . . . . . . . . Machines Dismantled . | . . . . . . . . . . . . . Machines Sabotaged . | . . . . . . . . . . . . . Overloaded Fab Kills . | . . . . . . . . . . . . . Hacking | -11 -10 -10 -10 -9 -8 -7 -6 -5 -5 -5 -4 -3 --------- Run | Yrd Mat Min Exi Min Mat Fac Fac Fac Upp Upp Fac Res Machines Accessed 35 | . 4 . 1 . 4 13 3 7 . . 2 1 Terminals 19 | . 4 . . . 2 5 2 5 . . 1 . Fabricators 3 | . . . . . . 1 1 . . . 1 . Repair Stations 3 | . . . . . . 2 . 1 . . . . Recycling Units 5 | . . . . . 1 3 . 1 . . . . Scanalyzers 1 | . . . . . . 1 . . . . . . Garrison Access 3 | . . . . . 1 1 . . . . . 1 Total Hacks 60 | . 9 . 1 . 8 24 5 8 . . 3 2 Successful 26 | . 3 . 1 . 6 12 2 . . . 2 . Failed 33 | . 6 . . . 2 11 3 8 . . 1 2 Catastrophic 7 | . 3 . . . 1 1 . 2 . . . . Database Lockouts 1 | . . . . . . 1 . . . . . . Manual 24 | . 6 . 1 . 4 9 1 3 . . . . Terminals 35 | . 9 . . . 6 10 3 6 . . 1 . Fabricators 6 | . . . . . . 2 2 . . . 2 . Repair Stations 4 | . . . . . . 3 . 1 . . . . Recycling Units 6 | . . . . . 1 4 . 1 . . . . Scanalyzers 2 | . . . . . . 2 . . . . . . Garrison Access 6 | . . . . . 1 3 . . . . . 2 Terminal Hacks 12 | . 3 . 1 . 4 3 . . . . 1 . Part Schematic 2 | . 1 . . . . 1 . . . . . . Prototype ID Bank 1 | . 1 . . . . . . . . . . . Open DSF 2 | . . . . . . 1 . . . . 1 . Level Access Points 2 | . . . . . 1 1 . . . . . . Unreport Threat 1 | . . . . . 1 . . . . . . . Transport Status 1 | . . . . . 1 . . . . . . . Zone Layout 2 | . 1 . . . 1 . . . . . . . Derelict Proto ID Bank 1 | . . . 1 . . . . . . . . . Fabricator Hacks 5 | . . . . . . 2 2 . . . 1 . Network Status 1 | . . . . . . . . . . . 1 . Load Schematic 2 | . . . . . . 1 1 . . . . . Build 2 | . . . . . . 1 1 . . . . . Repair Station Hacks 2 | . . . . . . 2 . . . . . . Scan Component 1 | . . . . . . 1 . . . . . . Repair 1 | . . . . . . 1 . . . . . . Recycling Unit Hacks 3 | . . . . . 1 2 . . . . . . Report Inventory 1 | . . . . . . 1 . . . . . . Retrieve Components 2 | . . . . . 1 1 . . . . . . Scanalyzer 2 | . . . . . . 2 . . . . . . Insert Component 1 | . . . . . . 1 . . . . . . Analyze 1 | . . . . . . 1 . . . . . . Garrison Access Hacks 2 | . . . . . 1 1 . . . . . . Seal Access 1 | . . . . . 1 . . . . . . . Coupler Status 1 | . . . . . . 1 . . . . . . Unauthorized Hacks . | . . . . . . . . . . . . . Terminals . | . . . . . . . . . . . . . Fabricators . | . . . . . . . . . . . . . Repair Stations . | . . . . . . . . . . . . . Recycling Units . | . . . . . . . . . . . . . Scanalyzers . | . . . . . . . . . . . . . Garrison Access . | . . . . . . . . . . . . . Data Cores Recovered . | . . . . . . . . . . . . . Used . | . . . . . . . . . . . . . Hacking Detections 25 | . 2 . . . 2 10 3 6 . . 1 1 Full Trace Events 6 | . 2 . . . . 3 1 . . . . . Feedback Events . | . . . . . . . . . . . . . Feedback Blocked . | . . . . . . . . . . . . . Robot Schematics Acquired . | . . . . . . . . . . . . . Robots Built . | . . . . . . . . . . . . . Authchips . | . . . . . . . . . . . . . Time . | . . . . . . . . . . . . . Total Robot Build Rating . | . . . . . . . . . . . . . Part Schematics Acquired 3 | . 1 . . . . 2 . . . . . . Parts Built 3 | . . . . . . 1 2 . . . . . Authchips . | . . . . . . . . . . . . . Time 150 | . . . . . . 99 51 . . . . . Total Part Build Rating 4 | . . . . . . 2 2 . . . . . Parts Repaired 1 | . . . . . . 1 . . . . . . Time 38 | . . . . . . 38 . . . . . . Parts Recycled . | . . . . . . . . . . . . . Recycled Matter . | . . . . . . . . . . . . . Retrieved Matter . | . . . . . . . . . . . . . Retrieved Components 3 | . . . . . 2 1 . . . . . . Parts Scanalyzed 1 | . . . . . . 1 . . . . . . Part Schematics Acquired 1 | . . . . . . 1 . . . . . . Parts Damaged . | . . . . . . . . . . . . . Bothacking | -11 -10 -10 -10 -9 -8 -7 -6 -5 -5 -5 -4 -3 ------------ Run | Yrd Mat Min Exi Min Mat Fac Fac Fac Upp Upp Fac Res Used RIF Installer . | . . . . . . . . . . . . . Robots Hacked . | . . . . . . . . . . . . . Non-combat . | . . . . . . . . . . . . . Combat . | . . . . . . . . . . . . . Robot Hacks Applied . | . . . . . . . . . . . . . Relay Couplers Released . | . . . . . . . . . . . . . Fabnet Peak Effective % . | . . . . . . . . . . . . . Robots Rewired . | . . . . . . . . . . . . . Allies Hacked 1 | . . . . . . 1 . . . . . . Hacks Repelled . | . . . . . . . . . . . . . Allies | -11 -10 -10 -10 -9 -8 -7 -6 -5 -5 -5 -4 -3 -------- Run | Yrd Mat Min Exi Min Mat Fac Fac Fac Upp Upp Fac Res Total Allies 15 | . . 6 . . 1 2 6 . . . . . Largest Group 5 | . . 5 5 3 1 2 3 . . . . . Highest-Rated Group 95 | . . 95 95 55 15 42 93 . . . . . Highest-Rated Ally 37 | . . 31 31 31 15 37 37 . . . . . Total Orders 6 | . . 3 . . . 1 2 . . . . . ROAM 2 | . . . . . . . 2 . . . . . GUARD 3 | . . 3 . . . . . . . . . . AID 1 | . . . . . . 1 . . . . . . Ally Attacks 83 | . . 31 . 10 5 16 21 . . . . . Total Damage 2051 | . . 325 . 93 124 493 1016 . . . . . Kills 18 | . . 6 . 2 2 3 5 . . . . . Allies Corrupted . | . . . . . . . . . . . . . Allies Melted . | . . . . . . . . . . . . . Field Lobotomies 5 | . . . . . 1 1 3 . . . . . Intel | -11 -10 -10 -10 -9 -8 -7 -6 -5 -5 -5 -4 -3 ------- Run | Yrd Mat Min Exi Min Mat Fac Fac Fac Upp Upp Fac Res Robot Analysis Total . | . . . . . . . . . . . . . Derelict Logs Recovered 5 | . . 3 . . . . . . 2 . . . Drone Launches . | . . . . . . . . . . . . . Drone Recoveries . | . . . . . . . . . . . . . Exploration | -11 -10 -10 -10 -9 -8 -7 -6 -5 -5 -5 -4 -3 ------------- Run | Yrd Mat Min Exi Min Mat Fac Fac Fac Upp Upp Fac Res Turns Passed 13078 | 44 2235 1782 753 468 1199 2414 1269 950 497 18 1005 444 Spaces Moved 10296 | 34 1348 573 236 139 440 2160 1791 830 751 32 1272 690 Core 266 | 3 4 . . . . . . . . . 230 29 Treads 1652 | . 262 573 236 139 440 2 . . . . . . Legs 702 | . 702 . . . . . . . . . . . Wheels 416 | 31 380 . . . . . . . . . . 5 Hover 3080 | . . . . . . 439 936 171 751 32 751 . Flight 4180 | . . . . . . 1719 855 659 . . 291 656 Fastest Speed 25 | 50 80 160 320 320 240 27 28 27 56 56 35 25 Average Speed 89 | 87 131 304 320 320 241 43 47 32 58 56 46 36 Slowest Speed 337 | 100 250 320 320 320 243 337 272 119 120 56 100 155 Overloaded Moves . | . . . . . . . . . . . . . Propulsion Burnouts . | . . . . . . . . . . . . . Robots Hopped 3 | . . . . . . 2 . . . . 1 . Cave-ins Triggered 8 | . . . . . . 2 1 2 . . 2 1 Exploration Rate (%) 43 | 3 97 86 42 35 34 46 56 22 85 9 37 18 Regions Visited 12 Branch Regions 5 Pre-discovered Areas 2 | . . 1 . . . . . . 1 . . . Known Exits Taken 6 | . 1 . . . 1 1 . 1 1 1 . . Unknown Exits Taken 6 | 1 . 1 1 1 . . 1 . . . 1 . Scrap Searched 9 | . . 3 . 2 . . . . 4 . . . Spaces Dug 181 | . . . . . . 72 35 28 2 . 34 10 Terrain Destroyed 289 | . . . . . . 72 97 28 2 . 80 10 Melee 181 | . . . . . . 72 35 28 2 . 34 10 Projectile 1 | . . . . . . . 1 . . . . . AOE 107 | . . . . . . . 61 . . . 46 . Terrain Rammed . | . . . . . . . . . . . . . Walls Destroyed . | . . . . . . . . . . . . . Machines Disabled . | . . . . . . . . . . . . . Actions | -11 -10 -10 -10 -9 -8 -7 -6 -5 -5 -5 -4 -3 --------- Run | Yrd Mat Min Exi Min Mat Fac Fac Fac Upp Upp Fac Res Total 13486 | 45 1659 611 236 150 533 3438 2135 1436 805 31 1579 828 Wait 2300 | . 168 32 . . 31 1020 210 522 43 . 211 63 Move 10277 | 33 1347 572 235 138 439 2155 1790 829 750 31 1269 689 Hop 3 | . . . . . . 2 . . . . 1 . Pick Up 68 | 4 17 1 1 3 9 16 8 4 . . 3 2 Fast Attach 135 | 6 16 1 . 1 7 22 22 17 4 . 22 17 Attach 56 | . 4 . . . 2 22 10 2 2 . 5 9 Detach 40 | . 4 . . 1 2 14 4 3 1 . 4 7 Swap 36 | 1 4 1 . . 17 9 3 1 . . . . Drop 118 | 1 14 2 . . 8 38 22 17 2 . 7 7 Fire 127 | . 78 1 . 7 18 8 10 . . . 2 3 Melee 294 | . . . . . . 122 43 41 3 . 55 30 Ram 1 | . 1 . . . . . . . . . . . Kick 4 | . 4 . . . . . . . . . . . Crush 3 | . 2 1 . . . . . . . . . . Escape Stasis 24 | . . . . . . 10 13 . . . . 1 Rewire . | . . . . . . . . . . . . . Trap . | . . . . . . . . . . . . . Miscellaneous . | . . . . . . . . . . . . . Route ------- -11/Scrapyard -10/Materials (discovered 5 exits: *Mat x3 / *Min x2) -10/Mines (discovered 4 exits: *Mat x2 / *Exi / *Sub) -10/Exiles -9/Mines -8/Materials (discovered 3 exits: *Fac x3) -7/Factory (discovered 6 exits: *Fac x4 / *Low x2) -6/Factory (discovered 3 exits: *Fac / *Low x2) -5/Factory -5/Upper Caves -5/Upper Caves -4/Factory (discovered 3 exits: *Res / Upp / *Arm) -3/Research History --------- Turn | Location | Event 19 | -11/Scrapyard | Discovered new exit (range 16) 45 | -11/Scrapyard | Entered Materials 218 | -10/Materials | Discovered new exit (range 15) 303 | -10/Materials | Build established: Mutant 471 | -10/Materials | Discovered new exit (range 17) 475 | -10/Materials | Discovered new exit (range 12) 1018 | -10/Materials | Identified exit to Materials 1128 | -10/Materials | Lost 3 parts (1p2w) 1200 | -10/Materials | Identified exit to Mines 1233 | -10/Materials | Discovered exit to Materials (range 15) 1636 | -10/Materials | Discovered exit to Materials (range 15) 2280 | -10/Materials | Entered Mines 2282 | -10/Mines | Assisted by bots powering up and referring to "LRC-V3" 2347 | -10/Mines | Met a Derelict bent on vengeance 2394 | -10/Mines | Learned location of Storage (-8) 2526 | -10/Mines | Learned Materials stockpile data 2680 | -10/Mines | Discovered exit to Materials (range 4) 2827 | -10/Mines | Learned Materials garrison access intel 2907 | -10/Mines | Discovered exit to Materials (range 9) 3489 | -10/Mines | Discovered new exit (range 10) 3520 | -10/Mines | Identified exit to Subcaves 3699 | -10/Mines | Found a damaged Exp. Sensor Array with a note attached 3710 | -10/Mines | Found Prototype Device 3710 | -10/Mines | Identified Exp. Sensor Array 3758 | -10/Mines | Learned location of 1 exit from Materials 3903 | -10/Mines | Deemed a non-threat by the Exiles lab entrance 3903 | -10/Mines | Discovered new exit (range 5) 3981 | -10/Mines | Met a Derelict testing a Signal Generator 4062 | -10/Mines | Entered Exiles 4062 | -10/Exiles | Accompanied by 5 allies 4092 | -10/Exiles | Led the pair of lost Derelicts to a safe place 4149 | -10/Exiles | Met 8R-AWN 4200 | -10/Exiles | Met EX-HEX 4302 | -10/Exiles | Met EX-BIN 4338 | -10/Exiles | Aligned with FarCom system 4341 | -10/Exiles | Given EX-Vault access code 4424 | -10/Exiles | Opened EX-Vault 4450 | -10/Exiles | Found Field Lobotomy Kit 4518 | -10/Exiles | Warned to stay clear of 0b10 Research branches 4771 | -10/Exiles | Discovered new exit (range 15) 4815 | -10/Exiles | Left Exiles lab with Field Lobotomy Kit 4815 | -10/Exiles | Entered Mines 4815 | -9/Mines | Accompanied by 3 allies 5059 | -9/Mines | Core integrity fell below 50% 5103 | -9/Mines | Lost 3 allies 5254 | -9/Mines | Discovered new exit (range 10) 5283 | -9/Mines | Entered Materials 5283 | -8/Materials | Evolved 4 slots: Propulsion x1, Utility x3 5284 | -8/Materials | Identified exit to Factory 5286 | -8/Materials | Loaded intel: 1 garrison access location 5426 | -8/Materials | Garrison activated, responded to threat 5485 | -8/Materials | Assimilated Y-45 Defender with FLK Orb 5574 | -8/Materials | Build established: Skirmisher 6268 | -8/Materials | Build established: Mutant 6482 | -8/Materials | Entered Factory 6482 | -7/Factory | Evolved 2 slots: Propulsion x1, Utility x1 6843 | -7/Factory | Build established: Hacker-Scout 7108 | -7/Factory | Central database locked down 7220 | -7/Factory | Fabricated Imp. Flight Unit? 7321 | -7/Factory | Crushed by falling debris 7324 | -7/Factory | Assimilated P-60 Hacker with FLK Orb 7342 | -7/Factory | Build established: Hacker-Sprinter 7542 | -7/Factory | Discovered new exit (range 7) 7818 | -7/Factory | Identified exit to Lower Caves 8048 | -7/Factory | Lost 5 parts (4n1u) 8063 | -7/Factory | Identified exit to Factory 8100 | -7/Factory | Crushed by falling debris 8328 | -7/Factory | System corruption reached 10% 8351 | -7/Factory | Discovered exit to Lower Caves (range 5) 8359 | -7/Factory | Cargo convoy interrupted 8677 | -7/Factory | Build established: Scavenger-Mutant 8745 | -7/Factory | Repaired Reaction Control System 8896 | -7/Factory | Entered another Factory area 8896 | -6/Factory | Evolved 2 slots: Power x1, Propulsion x1 9362 | -6/Factory | Discovered new exit (range 9) 9420 | -6/Factory | Fabricated Propulsion Shielding? 9466 | -6/Factory | Identified exit to Lower Caves 9520 | -6/Factory | Crushed by falling debris 9744 | -6/Factory | Assimilated P-60 Hacker with FLK Orb 9747 | -6/Factory | Assimilated Y-54 Guardian with FLK Orb 9789 | -6/Factory | Garrison activated, responded to threat 9827 | -6/Factory | Assimilated D-53 Grenadier with FLK Orb 9859 | -6/Factory | Lost 5 parts (3n2u) 10016 | -6/Factory | Discovered exit to Lower Caves (range 7) 10033 | -6/Factory | Allied Derelicts emerged from ambush trap array 10138 | -6/Factory | Build established: Scout 10144 | -6/Factory | Spotted B-75 Beast 10163 | -6/Factory | Discovered new exit (range 8) 10165 | -6/Factory | Entered another Factory area 10165 | -5/Factory | Evolved 2 slots: Propulsion x1, Utility x1 10478 | -5/Factory | Build established: Ninja 10708 | -5/Factory | Crushed by falling debris 10739 | -5/Factory | Lost 4 parts (3n1u) 10904 | -5/Factory | Crushed by falling debris 11100 | -5/Factory | Discovered new exit (range 8) 11106 | -5/Factory | Identified exit to Upper Caves 11115 | -5/Factory | Entered Upper Caves 11117 | -5/Upper Caves | Learned location of 1 exit from Factory 11149 | -5/Upper Caves | Learned location of Armory (-4) 11209 | -5/Upper Caves | Attracted the attention of an 0b10 outpost 11407 | -5/Upper Caves | Encountered a Warlord checkpoint 11587 | -5/Upper Caves | Discovered new exit (range 10) 11592 | -5/Upper Caves | Identified exit to Upper Caves 11612 | -5/Upper Caves | Entered another Upper Caves area 11617 | -5/Upper Caves | Discovered new exit (range 9) 11622 | -5/Upper Caves | Identified exit to Factory 11630 | -5/Upper Caves | Entered Factory 11630 | -4/Factory | Evolved 2 slots: Propulsion x1, Utility x1 11631 | -4/Factory | Identified exit to Upper Caves 11903 | -4/Factory | Crushed by falling debris 12133 | -4/Factory | Discovered new exit (range 15) 12163 | -4/Factory | Identified exit to Armory 12191 | -4/Factory | Crushed by falling debris 12191 | -4/Factory | System corruption reached 10% 12233 | -4/Factory | Lost 8 parts (1p4n3u) 12382 | -4/Factory | Lost 4 parts (1p1n2u) 12472 | -4/Factory | Core integrity fell below 50% 12491 | -4/Factory | Lost 5 parts (2n2u1w) 12584 | -4/Factory | Spotted B-86 Titan 12618 | -4/Factory | Discovered new exit (range 7) 12635 | -4/Factory | Entered Research 12635 | -3/Research | Evolved 2 slots: Power x1, Propulsion x1 12715 | -3/Research | Garrison activated, responded to threat 12795 | -3/Research | Crushed by falling debris 12918 | -3/Research | Lost 7 parts (1p2n4u) 13060 | -3/Research | Core integrity fell below 50% 13061 | -3/Research | System corruption reached 10% 13072 | -3/Research | Core integrity fell below 20% 13079 | -3/Research | Destroyed by G-67 Veteran with Plasma Rifle Last Messages --------------- 13062_ The unstable cave ceiling collapses. 13062_ Field Propulsion Array destroyed. 13062_ Hacking Suite destroyed. 13063_ U-05 Engineer builds a Wall. 13063_ K-01 Serf collects debris. 13068_ P-80 Master resets P-80 Master, system corruption cleaned. 13069_ R-10 Processor collects Wheel. 13070_ U-05 Engineer destroyed. 13070_ K-01 Serf collects debris. 13072_ Acquired Lgt. Ion Engine. 13072_ R-10 Processor collects Wheel. 13075_ Imp. Hover Unit destroyed. 13075_ K-01 Serf collects debris. 13076_ Imp. Signal Interpreter destroyed. 13076_ K-01 Serf destroyed. 13077_ Lgt. Ion Engine destroyed. 13079_ P-80 Master resets U-05 Engineer, system corruption cleaned. [Achievement: 5k Club] Map ----- +----------------------------------------------------+ | #?????????????# ????#??????????????????? | | #?????????????# ?? #??????????????????? | | #?????????????# "" #??????????????????? | | ##????????????# """ #??????????????????? | | +????????????# "T #??????????????????? | | #????????????# """ #??????????????????? | | # #????????????# "" #??????????????????? | | # ###??????????# #??????????????????? | | # #??????????# #??????????????????? | | # ############ #??????????????????? | | # ## # #########??????????? | | # ## #+#+###### #??????????? | | # ## # # #??????????? | | # ## """ / gu # #??????????? | | # ## """ # %Rg p/ #??????????? | | # ## """ ###ggRup # #??????????? | | # / n #?# =% !p# #??????????? | | # ### #?# ! %########??????????? | | # ######/##############?# =###???????????????? | | # # ! ##????????# u#?????????????????? | | # # #?????##### #?????????????????? | | # # #?????# #?????????????????? | | # # """ """ #?????# u #?????????????????? | | # # """S""" #?????# #?????????????????? | | # # #?????# #?????????????????? | | # # #?????# @##+###?????????????????? | | # #############?????## # ??????????????????? | | # #??????????????????# u# ????????????????? | | # #??????????????????+ # #???????????????? | | # ###????????????????# # % #???????????????? | | #????????????????# # #???????????????? | | #????????????????# # ! #???????????????? | | #????????Y???????# ########???????????????? | | #????????????????# #??????????????????????? | | #????????????????# R???????????????????????? | | #????????????????# ???????????????????????? | | #????????????????# ???????????????????????? | | ???????????????# ???????????????????????? | | ###??????????????+ ???????????????????????? | | #????????????????# ???????????????????????? | | #?????????????????? ???????????????????????? | | #????????????????????????????????????????????? | | #????????????????????????????????????????????? | | ##????????????????????????????????????????????? | | #?????????????????????????????????????????????? | | ??????????????????????????????????????????????? | | ?????????????????????????????????????????????????? | | ?????????????????????????????????????????????????? | | ?????????????????????????????????????????????????? | | ?????????????????????????????????????????????????? | +----------------------------------------------------+ Best States ------------- Heat Dissipation 62 Energy Generation 38 Energy Capacity 500 Matter Stores 300 Matter Capacity 300 Sight Range 22 Robot Scan Range 20 Terrain Scan Density 10 ECM Strength 2 Jamming Range 16 Cloak Strength 3 Additional Mass Support 12 Armor Coverage 225 Resistance: KI 30 Resistance: EM 15 Power Shielding 90 Propulsion Shielding 33 Utility Shielding 33 Weapon Shielding 66 Phase Shifting 5 Evasion (%) 72 Targeting Accuracy 6 Melee Accuracy 8 Core Analysis 6 Recoil Reduction 3 Offensive Hacking 30 Defensive Hacking 12 Item Schematics ----------------- Flight Unit | -10/Materials | Hacked Imp. Flight Unit | -7/Factory | Hacked Propulsion Shielding | -7/Factory | Scanalyzed Robot Schematics ------------------ None Fabricated ------------ Imp. Flight Unit | x1 | -7/Factory Propulsion Shielding | x2 | -6/Factory Alien Tech Used ----------------- None Achievements -------------- 5k Club Can't Catch Me Dangerous Findings Deadly Force Hey, That's Mine! Just What I Needed Made in Tau Ceti IV Part-time Excavator Power Corrupts System Compromised The More The Merrier Universal Adapter Unlikely Earthworm Challenges ------------ None Game ------ Seed PulseSiegeSegregator Manual? 0 Play Time 02:51:23 Cumulative 6.5 hours Start 2024.04.12 @ 13:01:33 End 2024.04.14 @ 15:40:35 Sessions 7 Manual Loads 0 Difficulty Rogue Special Mode None Game No. 11 Rogue 11 Adventurer 0 Explorer 0 Win Type - Total 0 Types 0/0/0/0/0/0/0/0/0 Lore% 4 Gallery% 14 Achievement% 13 Wizard Run 0 Options --------- Layout 1 ASCII 0 Keyboard 0 Movement Mouse Keybinds 0 Fullscreen 1 Font 24/Terminus Map View 50x35 Zoom Use 0% Tactical HUD 1 Map Filters NONE Filters NONE Steam 1 RUN: 66d63dad-ce8f-4188-8677-72e36ae19904